bitfinex/quotes_ETHUSD_20240707
["timestamp","ask_amount","ask_price","bid_price","bid_amount"]
[1720369283441,11.14991567,2987.1,2986.8,2.34364]
[1720369283606,11.14991567,2987.1,2986.2,4.68812]
[1720369283808,11.14991567,2987.1,2985.8,2.34442]
[1720369283809,3.0,2986.7,2986.3,2.34399]
[1720369284047,3.0,2986.7,2986.3,2.34398]
[1720369284240,3.0,2986.7,2986.4,2.34395]
[1720369284844,3.0,2986.7,2986.5,2.34386]
[1720369286346,2.3546,2986.6,2986.3,2.34398]
[1720369287239,2.3546,2986.6,2986.1,2.34413]
[1720369287454,3.0,2986.4,2985.9,2.34433]
[1720369287644,3.69991567,2986.4,2985.9,2.34433]
[1720369287820,0.69991567,2986.3,2985.9,2.34433]
[1720369288024,0.69991567,2986.3,2985.8,2.34441]
[1720369288256,3.0,2986.0,2985.6,2.34456]
[1720369288772,3.69991567,2986.0,2985.6,2.34456]
[1720369289870,3.69991567,2986.0,2985.6,2.34454]
[1720369290075,0.69991567,2986.1,2985.6,2.578994]
[1720369290249,3.0,2986.0,2985.6,2.578994]
[1720369290446,3.69991567,2986.0,2985.6,4.923514]
[1720369290686,2.4788,2985.9,2985.4,2.3447]
[1720369290879,3.17871567,2985.9,2985.4,2.3447]
[1720369291561,2.4788,2985.9,2985.4,2.3447]
[1720369291764,2.4788,2985.9,2985.4,2.34467]
[1720369291946,3.0,2985.7,2985.3,2.34481]
[1720369292663,3.69991567,2985.7,2985.3,2.34476]
[1720369292872,3.69991567,2985.7,2984.9,3.0]
[1720369292873,3.0,2985.7,2985.1,2.34494]
[1720369293046,3.69991567,2985.7,2985.1,2.34494]
[1720369293393,0.69991567,2985.5,2985.1,2.34494]
[1720369293965,3.0,2985.4,2984.9,2.34509]
[1720369294281,3.69991567,2985.4,2985.0,2.34504]
[1720369294907,3.69991567,2985.4,2984.9,2.814118]
[1720369295072,2.4788,2985.2,2984.7,2.34526]
[1720369295586,0.70111266,2985.1,2984.7,2.34526]
[1720369295789,3.0,2984.9,2984.5,2.34538]
[1720369295993,3.0,2984.9,2984.6,2.34535]
[1720369296181,3.0,2984.9,2984.5,2.34538]
[1720369296595,3.0,2984.9,2984.5,4.69078]
[1720369297104,3.70111266,2984.9,2984.2,2.34566]
[1720369297280,0.70111266,2984.7,2984.2,5.34566]
[1720369297491,0.70111266,2984.8,2984.2,5.34563]
[1720369297700,3.0,2984.6,2984.0,2.34581]
[1720369297921,2.4788,2984.5,2984.0,2.34581]
[1720369298503,3.17960078,2984.5,2984.0,2.34581]
[1720369298695,2.4788,2984.5,2984.0,2.34581]
[1720369300106,3.0,2983.9,2983.3,2.34636]
[1720369300274,3.0,2983.9,2983.1,2.6718374]
[1720369300275,2.3198,2983.8,2983.2,2.34646]
[1720369300475,2.3198,2983.8,2983.4,2.34631]
[1720369301091,2.3198,2983.8,2983.3,2.34637]
[1720369301293,2.3198,2983.8,2983.4,2.3463]
[1720369302617,2.3198,2983.8,2983.0,2.34656]
[1720369302819,2.3198,2983.8,2983.2,2.34642]
[1720369303003,2.3198,2983.8,2983.4,2.3463]
[1720369303188,2.3198,2983.8,2983.4,2.34631]
[1720369304232,12.7698,2984.2,2983.3,0.06703633]
[1720369304548,2.3198,2984.1,2983.5,2.34618]
[1720369304700,3.0,2983.9,2983.5,2.34618]
[1720369306424,3.0,2983.9,2983.6,2.34615]
[1720369307632,3.0,2983.9,2983.4,2.34628]
[1720369307839,3.0,2983.9,2983.3,2.34636]
[1720369309353,3.0,2983.5,2983.1,2.34652]
[1720369309576,3.0,2983.5,2982.9,2.34667]
[1720369309859,2.3198,2983.4,2982.9,2.34665]
[1720369310378,2.3198,2983.4,2983.0,2.34662]
[1720369310552,2.3198,2983.4,2982.9,2.34664]
[1720369310858,2.3198,2983.4,2982.8,2.34678]
[1720369311206,2.3198,2983.4,2982.7,2.34684]
[1720369311460,2.3198,2983.4,2982.7,2.34681]
[1720369311741,2.3198,2983.4,2982.7,2.581494]
[1720369313036,2.3198,2983.4,2982.9,2.3467]
[1720369315939,2.3198,2983.4,2982.9,2.34665]
[1720369316121,2.3198,2983.4,2983.0,2.34661]
[1720369316810,9.7698,2983.7,2983.4,2.3463]
[1720369317006,2.3198,2983.7,2983.4,2.3463]
[1720369318231,2.3198,2983.7,2981.7,2.34763]
[1720369318232,3.0,2983.5,2983.1,2.34653]
[1720369318948,3.0,2983.5,2983.2,2.34644]
[1720369319251,2.3198,2983.7,2982.6,2.3260445]
[1720369319451,2.3198,2983.7,2983.5,2.34622]
[1720369320221,7.45,2984.1,2983.5,2.34622]
[1720369320421,7.45,2984.1,2983.7,2.34607]
[1720369320823,3.0,2984.0,2983.5,2.34622]
[1720369321130,2.3106,2983.9,2983.2,2.34642]
[1720369321331,2.3106,2983.9,2983.1,2.34651]
[1720369321332,3.0,2983.6,2983.1,2.34651]
[1720369321731,2.3106,2983.5,2982.9,2.34664]
[1720369321934,2.3106,2983.5,2983.1,2.3465]
[1720369322681,2.3106,2983.5,2982.9,2.34664]
[1720369322682,3.0,2983.3,2982.9,2.34664]
[1720369322965,3.0,2983.3,2983.0,2.34661]
[1720369323326,3.0,2983.3,2982.8,2.34673]
[1720369323733,3.0,2983.0,2982.5,2.34699]
[1720369324240,2.3106,2982.9,2982.6,2.34693]
[1720369324694,2.3106,2982.9,2982.5,2.34699]
[1720369324864,2.3106,2982.9,2982.3,2.34715]
[1720369324865,3.0,2982.7,2982.3,2.34711]
[1720369325062,3.0,2982.7,2982.4,2.34706]
[1720369325246,2.3106,2982.9,2982.4,2.34706]
[1720369325892,3.0,2982.7,2982.1,2.3473]
[1720369326031,3.0,2982.7,2982.1,2.34727]
[1720369326241,3.0,2982.7,2982.3,4.69423]
[1720369326527,3.0,2982.7,2982.3,2.34711]
[1720369327532,1.16162054,2982.6,2982.3,2.34711]
[1720369327735,2.3106,2982.6,2981.5,3.0]
[1720369327970,2.3106,2982.6,2982.0,2.34735]
[1720369328289,2.3106,2982.6,2982.2,2.34719]
[1720369328639,1.16166838,2982.5,2982.2,2.34719]
[1720369328831,2.3106,2982.6,2982.2,2.34719]
[1720369329142,1.16167097,2982.5,2981.9,2.34748]
[1720369329344,2.3106,2982.6,2981.9,2.34748]
[1720369329535,1.16166546,2982.5,2982.1,2.34733]
[1720369329871,2.3106,2982.6,2982.1,2.34733]
[1720369330172,7.45,2982.8,2982.4,2.34705]
[1720369330468,7.45,2982.8,2982.6,2.34694]
[1720369331529,7.45,2983.3,2982.9,2.34666]
[1720369331879,2.3106,2983.5,2983.1,2.34655]
[1720369332166,1.16133028,2983.4,2983.3,2.34639]
[1720369332401,14.94,2983.6,2983.4,2.34627]
[1720369335359,11.94,2983.6,2983.4,4.69251]
[1720369335669,2.3106,2983.9,2983.4,2.34624]
[1720369335965,1.16119552,2983.8,2983.4,2.34624]
[1720369336169,3.0,2983.3,2982.8,2.34673]
[1720369336376,2.3106,2983.2,2982.6,2.34688]
[1720369336572,3.0,2982.9,2982.5,2.34701]
[1720369336959,1.16149803,2982.8,2982.5,2.34701]
[1720369337153,3.0,2982.9,2982.5,2.34701]
[1720369337374,1.16151872,2982.8,2982.6,2.34693]
[1720369337579,3.0,2982.9,2982.6,2.34693]
[1720369338383,3.0,2982.9,2982.6,2.816332]
[1720369338557,3.0,2982.9,2982.6,2.34693]
[1720369338916,1.16149235,2982.8,2982.6,2.34693]
[1720369339203,3.0,2982.9,2982.8,2.34678]
[1720369339377,2.3106,2983.2,2982.4,0.06705668]
[1720369339574,1.16137007,2983.1,2982.9,2.34666]
[1720369339761,3.0,2983.3,2982.9,2.34666]
[1720369339967,10.496732,2983.6,2982.9,2.34666]
[1720369339968,1.16138516,2983.2,2983.1,4.6931]
[1720369340188,9.9226,2983.6,2983.4,2.34626]
[1720369340393,1.16128289,2983.5,2983.4,2.34631]
[1720369340562,1.16128289,2983.5,2983.3,2.34635]
[1720369340768,3.700532,2983.9,2983.4,2.3463]
[1720369340977,1.16123637,2983.8,2983.5,2.34622]
[1720369341176,1.16123637,2983.7,2983.5,2.34622]
[1720369341367,1.16123637,2983.6,2983.5,2.34622]
[1720369341690,1.1611959,2983.6,2983.4,2.34626]
[1720369341894,0.700532,2983.8,2983.4,2.34626]
[1720369342229,0.700532,2983.8,2982.9,2.816012]
[1720369342230,1.16120541,2983.7,2983.2,2.34641]
[1720369342369,1.16120541,2983.7,2982.7,2.34685]
[1720369342370,3.0,2983.2,2982.7,2.3468]
[1720369342575,3.0,2983.2,2982.9,2.34667]
[1720369343085,3.0,2983.2,2982.9,4.69332]
[1720369343465,0.700532,2983.3,2983.2,4.69294]
[1720369343668,7.45,2983.5,2983.4,2.34631]
[1720369343967,0.700532,2983.7,2983.4,2.34631]
[1720369344198,0.700532,2983.8,2983.7,2.34608]
[1720369344398,1.86165138,2983.8,2983.7,2.34608]
[1720369344702,0.700532,2983.8,2983.7,2.34608]
[1720369344913,1.8616483,2983.8,2983.7,2.34608]
[1720369345317,1.86164745,2983.8,2983.7,2.34608]
[1720369345477,2.21191345,2983.8,2983.7,2.34608]
[1720369345984,3.64476763,2983.8,2983.3,4.69266]
[1720369346291,0.70272029,2983.5,2983.4,2.34631]
[1720369346493,3.2978283,2983.7,2983.5,4.69246]
[1720369346494,0.70271572,2983.6,2983.5,4.69246]
[1720369346693,1.05408044,2983.7,2983.5,4.69246]
[1720369346694,0.70271572,2983.7,2983.6,2.34615]
[1720369347375,0.70271572,2983.7,2983.5,2.34622]
[1720369347376,2.24379636,2983.7,2983.5,2.34622]
[1720369347575,1.05406209,2983.6,2983.5,2.34622]
[1720369348190,2.21525394,2983.6,2983.5,2.34622]
[1720369348408,1.05406209,2983.7,2983.5,2.34622]
[1720369348604,1.05406209,2983.6,2983.5,2.34622]
[1720369349110,0.70265942,2983.7,2983.6,2.34615]
[1720369349280,0.70265942,2983.7,2983.6,4.6923]
[1720369349495,7.45,2984.0,2983.6,2.34615]
[1720369349691,7.45,2984.0,2983.7,0.06702315]
[1720369349887,7.45,2984.0,2983.9,4.69184]
[1720369352489,0.70240092,2984.2,2984.1,2.34576]
[1720369352810,1.40480185,2984.5,2984.4,4.69106]
[1720369352811,0.70240092,2984.5,2984.4,4.69106]
[1720369353181,0.70240092,2984.6,2984.5,4.6909]
[1720369354322,0.70240092,2984.6,2984.3,2.34556]
[1720369354517,1.05360139,2984.8,2984.3,2.34556]
[1720369354518,1.05360139,2984.7,2984.5,2.34545]
[1720369355610,0.70134015,2984.6,2984.5,2.34545]
[1720369356206,0.70134015,2984.8,2984.5,2.814551]
[1720369356408,0.70134015,2984.8,2984.5,2.34545]
[1720369356709,0.70134015,2984.8,2984.7,2.34529]
[1720369357304,0.70134015,2984.8,2984.6,2.34531]
[1720369357716,0.70089989,2984.8,2984.1,2.3457]
[1720369357880,0.7009535,2984.6,2984.2,2.34561]
[1720369358078,0.7009535,2984.6,2984.3,2.34558]
[1720369358284,0.7009535,2984.7,2984.3,2.34558]
[1720369358507,0.7009535,2984.6,2984.3,2.34558]
[1720369358679,0.7009535,2984.6,2984.2,0.06701848]
[1720369359009,1.40179978,2984.9,2984.5,2.3454]
[1720369359010,0.7009535,2984.7,2984.5,2.3454]
[1720369359508,0.7009535,2984.8,2984.5,2.3454]
[1720369360507,3.0,2984.7,2984.1,2.34572]
[1720369360732,2.3416,2984.6,2984.2,2.34566]
[1720369361028,2.3416,2984.6,2984.3,2.34558]
[1720369361218,0.7009535,2984.8,2984.5,2.34537]
[1720369361518,0.7009535,2985.0,2984.7,2.34529]
[1720369361696,0.7009535,2984.9,2984.7,2.34529]
[1720369362321,0.7009535,2985.0,2984.7,2.34529]
[1720369363425,6.0425535,2985.1,2984.7,2.34529]
[1720369363883,6.0425535,2985.1,2984.7,2.34523]
[1720369364083,0.7009535,2985.1,2984.9,2.34509]
[1720369364282,3.0,2985.4,2984.9,2.34509]
[1720369364489,2.34443,2985.8,2984.7,0.234523]
[1720369364490,3.04135614,2985.9,2985.4,2.34474]
[1720369364716,3.0,2985.7,2985.4,2.34474]
[1720369366424,3.0,2985.7,2985.1,2.34497]
[1720369366802,3.69975614,2985.7,2985.1,2.34497]
[1720369367299,3.0,2985.4,2984.9,2.34512]
[1720369367637,3.0,2984.9,2984.8,2.34521]
[1720369368208,2.3416,2985.3,2984.9,2.34509]
[1720369368421,2.3416,2985.3,2985.0,2.34505]
[1720369373436,3.0,2985.2,2984.6,2.3453]
[1720369373642,3.0,2985.2,2984.7,4.69052]
[1720369373926,3.0,2985.2,2984.7,2.34524]
[1720369374626,3.0,2985.2,2984.5,2.3454]
[1720369374843,3.0,2984.9,2984.5,2.3454]
[1720369375522,3.0,2984.9,2984.3,2.34554]
[1720369375842,3.50241083,2984.8,2984.1,4.69143]
[1720369376144,2.3416,2984.8,2984.2,2.34566]
[1720369376305,1.16083712,2984.7,2984.2,2.34566]
[1720369376508,2.3416,2984.8,2984.2,2.34566]
[1720369377061,3.0,2984.6,2984.2,2.34566]
[1720369378354,1.16088248,2984.5,2984.0,2.34578]
[1720369378552,1.1609009,2984.4,2984.0,2.34578]
[1720369378730,2.34545,2984.5,2983.8,2.34595]
[1720369378950,1.16094595,2984.4,2983.8,2.34595]
[1720369379241,1.16094595,2984.3,2983.8,2.34595]
[1720369379417,2.34545,2984.5,2983.9,2.34591]
[1720369379418,1.16094595,2984.4,2983.9,2.34591]
[1720369379958,2.34545,2984.5,2983.9,2.34591]
[1720369380241,1.16095853,2984.4,2983.9,2.34591]
[1720369380445,2.34545,2984.5,2983.9,2.34591]
[1720369380946,2.34545,2984.5,2983.7,2.34602]
[1720369381144,2.34545,2984.5,2983.1,2.262]
[1720369381145,2.3835,2984.2,2983.5,2.34619]
[1720369381535,1.16103565,2984.1,2983.4,2.34625]
[1720369381714,1.1610717,2984.0,2983.5,2.34622]
[1720369381926,1.16111742,2983.9,2983.5,2.34622]
[1720369382218,3.08392199,2984.2,2983.5,2.34622]
[1720369382420,3.0,2983.9,2983.3,2.34633]
[1720369382620,1.16112839,2983.8,2983.4,2.3463]
[1720369382917,1.16112839,2983.8,2983.5,2.34621]
[1720369383322,3.0,2983.9,2983.5,2.34621]
[1720369383521,1.16114415,2983.8,2983.5,2.34621]
[1720369383838,3.0,2983.9,2983.5,2.34621]
[1720369384034,1.16114473,2983.8,2983.5,2.34621]
[1720369384371,3.0,2983.9,2983.1,4.6085]
[1720369384519,1.16117556,2983.8,2983.4,2.3463]
[1720369384716,3.70042199,2983.9,2983.4,2.3463]
[1720369384913,1.1611729,2983.8,2983.5,2.34622]
[1720369385166,3.0,2983.9,2983.5,2.34622]
[1720369385862,3.70042199,2983.9,2983.5,2.34622]
[1720369386560,3.70042199,2983.9,2983.6,2.34614]
[1720369386766,0.70124968,2984.0,2983.4,0.06702984]
[1720369387086,8.15124968,2984.5,2984.0,4.69168]
[1720369387377,1.40249936,2984.8,2984.6,2.34537]
[1720369387378,8.15124968,2984.8,2984.6,2.34537]
[1720369387578,0.70124968,2984.9,2984.8,2.34521]
[1720369387719,0.70124968,2985.0,2984.8,2.34521]
[1720369388139,0.70124968,2985.2,2984.9,2.34513]
[1720369388928,0.70124968,2985.1,2984.9,2.34513]
[1720369389522,0.70124968,2985.1,2984.6,2.3453]
[1720369389726,0.70137581,2985.0,2984.7,2.34528]
[1720369389949,0.70137581,2985.0,2984.8,4.69035]
[1720369390158,0.70137581,2985.1,2984.9,2.34512]
[1720369391389,0.70137581,2985.0,2984.7,2.34522]
[1720369391555,0.70137581,2985.0,2984.3,2.262]
[1720369391764,0.70137581,2985.0,2984.4,2.34548]
[1720369391765,0.70137581,2984.6,2984.4,2.34548]
[1720369391982,0.70137581,2984.7,2984.4,2.34548]
[1720369392183,1.05206371,2984.8,2984.6,2.34537]
[1720369392349,1.05206371,2984.7,2984.6,2.34537]
[1720369392559,0.70173255,2984.9,2984.7,2.34529]
[1720369392819,1.05206371,2985.0,2984.7,2.34529]
[1720369393098,0.70169071,2984.8,2984.7,2.34529]
[1720369393900,0.70169071,2984.8,2984.5,2.34543]
[1720369394108,0.70184632,2984.7,2984.5,2.34543]
[1720369394252,0.70184632,2984.6,2984.3,4.69109]
[1720369394460,0.70184632,2984.6,2984.3,2.34553]
[1720369394672,0.70184632,2984.5,2984.3,2.34559]
[1720369394890,0.70184632,2984.5,2984.4,2.34553]
[1720369395688,0.70184632,2984.5,2984.4,2.814642]
[1720369395997,0.70184632,2984.6,2984.5,4.6909]
[1720369396153,0.70184632,2984.9,2984.8,2.34521]
[1720369396360,1.05253607,2984.9,2984.8,2.34521]
[1720369396587,1.05253607,2985.0,2984.9,2.34513]
[1720369396898,1.40338143,2985.1,2984.7,2.34522]
[1720369397213,1.05327246,2984.9,2984.7,2.34522]
[1720369397420,1.05327246,2984.9,2984.7,4.69046]
[1720369397603,1.05327246,2984.9,2984.5,2.34541]
[1720369397808,0.70219573,2984.6,2984.5,2.34541]
[1720369398809,0.70219573,2984.7,2984.6,2.34537]
[1720369399179,3.0,2985.0,2984.7,2.34524]
[1720369399411,1.05334531,2984.8,2984.7,2.34524]
[1720369400005,1.05334531,2984.9,2984.8,2.34521]
[1720369400515,1.05334531,2985.0,2984.8,2.34521]
[1720369400894,1.05334531,2985.0,2984.9,2.34513]
[1720369401424,1.0532754,2985.0,2984.9,2.34513]
[1720369402183,1.40446041,2985.1,2984.9,2.34513]
[1720369402790,3.0,2985.1,2984.5,2.34541]
[1720369403117,0.70218154,2984.7,2984.6,2.34537]
[1720369404216,0.70218154,2984.7,2984.6,4.69074]
[1720369404516,0.70218154,2984.9,2984.8,2.34521]
[1720369404716,1.05327231,2984.9,2984.8,2.34521]
[1720369404920,1.05327231,2985.0,2984.8,2.34521]
[1720369405294,1.05327231,2984.9,2984.8,2.34521]
[1720369405627,3.0,2985.1,2984.8,2.34521]
[1720369405797,2.56508592,2985.0,2984.8,2.34521]
[1720369406004,1.4044097,2985.0,2984.8,2.34521]
[1720369406523,1.05331103,2985.0,2984.8,2.34521]
[1720369406821,1.05331103,2984.9,2984.8,2.34521]
[1720369407189,1.4044097,2985.1,2984.9,2.34513]
[1720369407391,1.05328591,2985.0,2984.9,2.34513]
[1720369407596,1.05328591,2985.1,2984.9,2.34513]
[1720369408041,1.05328591,2985.0,2984.9,2.34513]
[1720369408528,1.4044097,2985.2,2985.0,2.34505]
[1720369409024,1.40431145,2985.1,2985.0,2.34505]
[1720369409432,8.85431145,2985.3,2985.1,2.34498]
[1720369409724,8.85431145,2985.3,2985.2,2.3449]
[1720369409964,1.40431145,2985.4,2985.3,2.34482]
[1720369410101,1.40431145,2985.6,2985.4,2.34474]
[1720369410301,1.0529399,2985.5,2985.4,2.34474]
[1720369410500,1.0529399,2985.6,2985.4,2.34474]
[1720369410725,1.0529399,2985.5,2985.4,2.34474]
[1720369411225,1.0529399,2985.6,2985.4,2.34474]
[1720369412233,0.7019486,2985.7,2985.4,0.468963]
[1720369412437,8.50292291,2985.8,2985.7,2.3445]
[1720369412438,8.1519486,2985.8,2985.7,2.3445]
[1720369412633,8.15177735,2985.8,2985.7,2.3445]
[1720369413310,7.45,2985.8,2985.7,2.3445]
[1720369414313,7.45,2985.8,2985.7,2.813408]
[1720369415224,7.45,2985.8,2985.7,2.3445]
[1720369416015,0.70120587,2985.9,2985.8,2.34443]
[1720369416569,0.70120587,2986.0,2985.8,2.34443]
[1720369417740,0.70120587,2986.0,2985.7,2.34444]
[1720369418115,0.70120587,2986.0,2985.8,2.34441]
[1720369419812,3.70120587,2986.0,2985.0,2.3886]
[1720369420033,0.70120587,2985.8,2985.2,2.34483]
[1720369420447,0.70120587,2985.8,2985.2,4.68967]
[1720369420448,2.97930587,2985.7,2985.2,4.68967]
[1720369420632,2.97930587,2985.7,2985.2,2.34483]
[1720369420961,2.97930587,2985.7,2985.2,4.68968]
[1720369421438,2.2781,2985.7,2985.2,2.34483]
[1720369421642,2.97873765,2985.7,2985.2,2.34483]
[1720369421810,0.70063765,2985.6,2985.2,2.34483]
[1720369422015,0.70063765,2985.6,2985.2,4.68967]
[1720369422912,0.70063765,2985.6,2985.3,2.34481]
[1720369423677,0.70063765,2985.5,2984.7,2.262]
[1720369423954,0.70063765,2985.5,2985.2,2.34489]
[1720369425739,0.70063765,2985.5,2984.8,3.105914]
[1720369425969,4.05095647,2985.6,2984.8,3.105914]
[1720369425970,0.70063765,2985.4,2984.9,2.34506]
[1720369426130,1.86115812,2985.5,2985.1,2.34497]
[1720369426337,0.70063765,2985.5,2985.1,2.34497]
[1720369426923,0.70063765,2985.4,2985.1,2.34497]
[1720369427740,0.70063765,2985.4,2984.9,2.34508]
[1720369427972,3.70063765,2985.3,2984.7,4.69047]
[1720369428118,3.70063765,2985.3,2984.7,2.34522]
[1720369428769,3.70063765,2985.3,2984.8,2.34517]
[1720369429085,1.86125308,2985.2,2984.7,2.34522]
[1720369429211,1.86125308,2985.2,2984.4,3.0]
[1720369429212,3.70063765,2985.0,2984.6,2.34532]
[1720369429650,0.70063765,2984.9,2984.7,2.34528]
[1720369431270,0.70063765,2984.8,2984.7,2.34528]
[1720369431454,0.70063765,2984.8,2983.9,7.6036]
[1720369431621,0.70063765,2984.7,2984.1,2.34571]
[1720369431827,0.70063765,2984.6,2984.1,2.806481]
[1720369432023,0.70063765,2984.5,2984.3,2.34554]
[1720369432336,0.70063765,2984.4,2984.3,2.34554]
[1720369433810,0.70063765,2984.5,2984.4,2.34553]
[1720369434462,0.70232512,2984.5,2984.4,2.34553]
[1720369437149,0.70232512,2984.6,2984.5,2.34545]
[1720369438255,1.05348769,2984.7,2984.5,2.34545]
[1720369439052,1.40465025,2984.8,2984.5,2.34545]
[1720369439053,1.05348769,2984.6,2984.5,2.34545]
[1720369440136,1.05348769,2984.7,2984.6,2.34537]
[1720369440343,1.40465025,2984.8,2984.7,2.34529]
[1720369440344,1.05348769,2984.8,2984.7,2.34529]
[1720369440550,8.50348769,2984.9,2984.8,2.34521]
[1720369441041,8.15207284,2984.9,2984.8,2.34521]
[1720369441358,7.45,2984.9,2984.8,2.34521]
[1720369441559,8.50348769,2984.9,2984.6,2.34529]
[1720369441871,0.70212054,2984.7,2984.6,2.34529]
[1720369442027,1.05348769,2984.8,2984.6,4.69061]
[1720369442227,8.85430757,2984.9,2984.6,4.69061]
[1720369442440,1.05323068,2984.8,2984.7,2.34529]
[1720369443043,1.05323068,2984.9,2984.7,2.34529]
[1720369443237,1.05323068,2984.9,2984.8,2.34521]
[1720369443648,1.05323068,2984.9,2984.6,2.34529]
[1720369443835,0.70212707,2984.7,2984.6,2.34529]
[1720369444666,1.05323068,2984.9,2984.6,2.34529]
[1720369444667,0.70212707,2984.8,2984.7,2.34529]
[1720369445461,1.05323068,2984.9,2984.8,2.34521]
[1720369445659,1.05323068,2985.0,2984.8,2.34521]
[1720369445971,1.05323068,2985.0,2984.9,2.34513]
[1720369446297,1.05323068,2985.1,2984.9,2.34513]
[1720369446575,1.05323068,2985.1,2985.0,2.34505]
[1720369446576,0.70205459,2985.1,2985.0,2.34505]
[1720369446734,1.05323068,2985.2,2985.1,2.34498]
[1720369447442,1.40430757,2985.3,2984.9,2.34506]
[1720369447629,0.70209015,2985.0,2984.9,2.34506]
[1720369447826,1.05313523,2985.1,2984.9,2.34506]
[1720369448039,1.05313523,2985.1,2985.0,2.34505]
[1720369448273,2.21373273,2985.1,2985.0,2.34505]
[1720369448476,1.40430757,2985.2,2985.0,2.34505]
[1720369448477,1.05313523,2985.2,2985.0,2.34505]
[1720369448675,0.70207132,2985.1,2985.0,2.34505]
[1720369448858,1.05313523,2985.1,2985.0,2.34505]
[1720369449169,2.21372749,2985.1,2985.0,2.34505]
[1720369449741,1.05313523,2985.2,2985.0,4.69003]
[1720369449933,2.21369065,2985.1,2985.0,2.34498]
[1720369450152,1.05313523,2985.1,2985.0,2.34498]
[1720369450564,2.21370173,2985.1,2985.0,2.34498]
[1720369451389,1.05313523,2985.2,2985.1,2.34498]
[1720369451561,0.70210489,2985.2,2985.1,2.34498]
[1720369451762,0.70210489,2985.3,2985.2,2.3449]
[1720369452586,0.70210489,2985.3,2985.2,4.6898]
[1720369453597,1.05313523,2985.4,2985.3,4.68964]
[1720369453598,0.70210489,2985.4,2985.3,4.68964]
[1720369453769,0.70210489,2985.5,2985.4,4.68948]
[1720369455469,1.05313523,2985.6,2985.5,2.34466]
[1720369455672,2.21350246,2985.6,2985.5,2.34466]
[1720369456178,2.213506,2985.6,2985.3,2.34476]
[1720369456379,4.51671768,2985.5,2985.3,2.34476]
[1720369456581,2.21359242,2985.4,2985.3,2.34476]
[1720369456796,3.35633523,2985.5,2985.3,2.34476]
[1720369456981,3.35633523,2985.5,2985.3,4.68952]
[1720369457185,0.70199238,2985.4,2985.3,2.34476]
[1720369457383,1.05313523,2985.5,2985.4,2.34474]
[1720369457764,1.05313523,2985.6,2985.4,2.34474]
[1720369458320,1.05313523,2985.5,2985.4,2.34474]
[1720369458871,1.05313523,2985.6,2985.5,2.34466]
[1720369459079,1.16037791,2985.6,2985.4,2.34474]
[1720369459288,7.45,2985.7,2985.4,2.34474]
[1720369459582,1.05314016,2985.5,2985.4,2.34474]
[1720369460090,1.40418688,2985.6,2985.4,2.34474]
[1720369460793,1.05331504,2985.5,2985.4,2.34474]
[1720369461307,1.40418688,2985.6,2985.4,2.34474]
[1720369461510,1.40418688,2985.6,2985.3,2.3448]
[1720369461676,2.56460877,2985.5,2985.2,2.34489]
[1720369461879,1.05350669,2985.3,2985.2,2.34489]
[1720369462663,1.05350669,2985.3,2985.0,2.34504]
[1720369462998,0.70243878,2985.1,2985.0,2.34504]
[1720369463781,0.70243878,2985.1,2985.0,2.34505]
[1720369464183,1.05350669,2985.2,2985.0,2.34505]
[1720369464992,1.05350669,2985.2,2984.9,2.34508]
[1720369465299,1.05350669,2985.0,2984.9,2.34508]
[1720369465479,3.67418688,2985.1,2984.7,4.69046]
[1720369465676,1.40418688,2985.0,2984.7,4.69046]
[1720369465902,1.05429139,2984.8,2984.7,2.34522]
[1720369469079,1.05449744,2984.8,2984.7,2.34522]
[1720369469284,1.40599658,2984.9,2984.7,2.34522]
[1720369469503,1.05452188,2984.8,2984.7,2.34522]
[1720369470368,2.56668916,2984.8,2984.5,2.34543]
[1720369470571,2.56668916,2984.7,2984.5,2.34543]
[1720369470797,1.40602918,2984.7,2984.5,2.34543]
[1720369471005,1.40602918,2984.7,2984.4,2.34552]
[1720369471198,1.05460969,2984.5,2984.4,2.34552]
[1720369472317,1.05460969,2984.6,2984.2,4.69125]
[1720369472628,0.70302835,2984.3,2984.2,4.69125]
[1720369473223,1.05460969,2984.5,2984.3,2.3456]
[1720369473224,0.70302835,2984.4,2984.3,2.3456]
[1720369474326,0.70302835,2984.5,2984.4,2.34553]
[1720369476187,0.70302835,2984.5,2984.4,4.69106]
[1720369476400,0.70302835,2984.6,2984.5,4.6909]
[1720369476604,0.70302835,2984.7,2984.6,4.69074]
[1720369476808,1.05460969,2984.8,2984.7,2.34529]
[1720369477712,8.50460969,2985.0,2984.7,0.469066]
[1720369477912,0.70283699,2984.9,2984.7,0.469066]
[1720369478491,8.50432646,2985.0,2984.9,4.69026]
[1720369478706,0.7028743,2985.1,2985.0,4.6901]
[1720369478990,1.40558787,2985.5,2985.4,2.34471]
[1720369479206,2.56599971,2985.5,2985.4,2.34471]
[1720369480021,2.4589,2985.4,2984.8,2.34516]
[1720369480319,2.4589,2985.4,2984.5,4.60743]
[1720369480320,1.05434171,2985.1,2985.0,2.345]
[1720369481823,1.05447398,2985.1,2985.0,2.345]
[1720369481994,1.40596531,2985.2,2985.0,2.345]
[1720369482319,1.40596531,2985.1,2985.0,2.345]
[1720369483020,1.40596531,2985.2,2985.0,2.345]
[1720369483406,1.40596531,2985.2,2985.0,4.69]
[1720369483607,1.05457552,2985.1,2985.0,4.69005]
[1720369484579,1.40596531,2985.2,2985.1,2.34498]
[1720369485008,2.56650391,2985.2,2985.1,2.34498]
[1720369485215,1.40596531,2985.2,2985.1,2.34498]
[1720369485418,1.40596531,2985.2,2984.8,2.34518]
[1720369485583,1.05479618,2985.0,2984.9,2.34513]
[1720369486224,1.05483901,2985.0,2984.9,2.34513]
[1720369486518,1.40596531,2985.1,2984.9,2.34513]
[1720369486723,1.40596531,2985.0,2984.8,2.3452]
[1720369486880,1.40596531,2985.0,2984.8,2.34516]